bitfinex/quotes_BTCUSD_20240906
["timestamp","ask_amount","ask_price","bid_price","bid_amount"]
[1725625895589,0.42674386,56476.0,56452.0,0.1631]
[1725625895819,0.47374387,56497.0,56461.0,0.01]
[1725625896040,0.47374387,56497.0,56457.0,0.52650515]
[1725625896041,0.42674386,56485.0,56465.0,0.01]
[1725625896528,0.04700001,56496.0,56461.0,0.01]
[1725625896529,0.42674386,56495.0,56461.0,0.01]
[1725625896765,0.04465168,56485.0,56465.0,0.01]
[1725625896996,0.35403,56493.0,56468.0,0.01]
[1725625897218,0.35403,56493.0,56462.0,0.00554182]
[1725625897219,0.354112,56480.0,56459.0,0.53650515]
[1725625897476,0.02774901,56492.0,56479.0,0.01]
[1725625897750,0.53650515,56533.0,56470.0,0.01]
[1725625897751,0.52650515,56481.0,56470.0,0.01]
[1725625897971,0.52650515,56481.0,56458.0,0.002]
[1725625897972,0.42674386,56496.0,56476.0,0.01]
[1725625898238,0.52650515,56517.0,56493.0,0.01]
[1725625898239,0.353923,56510.0,56493.0,0.01]
[1725625898482,0.52650515,56517.0,56483.0,0.1704]
[1725625898483,0.52650515,56517.0,56505.0,0.01]
[1725625898719,0.3538,56530.0,56511.0,0.01]
[1725625898948,0.52650515,56533.0,56514.0,0.01]
[1725625899188,0.52650515,56533.0,56511.0,0.1791]
[1725625899189,0.070947,56551.0,56530.0,0.01]
[1725625899421,0.070947,56551.0,56549.0,0.01]
[1725625899655,0.070947,56551.0,56546.0,0.01]
[1725625899900,0.070947,56551.0,56541.0,0.002]
[1725625899901,0.070947,56551.0,56535.0,0.01]
[1725625900147,0.070947,56551.0,56538.0,0.52650515]
[1725625900424,0.070947,56551.0,56531.0,0.1799]
[1725625900650,0.00082,56557.0,56534.0,0.01]
[1725625900917,0.176862,56541.0,56540.0,0.01]
[1725625901193,0.00082,56557.0,56532.0,0.01]
[1725625901194,0.353735,56540.0,56532.0,0.01]
[1725625901452,0.00082,56557.0,56540.0,0.01]
[1725625901695,0.176883,56535.0,56533.0,0.02350766]
[1725625901943,0.00082,56557.0,56531.0,0.1799]
[1725625902234,0.000816,56551.0,56536.0,0.01]
[1725625902497,0.000816,56551.0,56532.0,0.02939383]
[1725625902498,0.176887,56533.0,56532.0,0.02939383]
[1725625902721,0.000816,56551.0,56537.0,0.02347805]
[1725625902722,0.88436,56538.0,56537.0,0.02347805]
[1725625902943,0.88436,56538.0,56525.0,0.01]
[1725625902944,0.176881,56535.0,56534.0,0.01]
[1725625903209,0.176881,56535.0,56520.0,0.1765]
[1725625903210,0.17689,56532.0,56531.0,0.01]
[1725625903439,0.17689,56532.0,56521.0,0.00353767]
[1725625903440,0.1435,56550.0,56530.0,0.01]
[1725625903665,0.1435,56550.0,56521.0,0.53004375]
[1725625903666,0.000816,56551.0,56543.0,0.01]
[1725625903896,0.000816,56551.0,56540.0,0.01]
[1725625904130,0.3537,56545.0,56531.0,0.01]
[1725625904382,0.884625,56521.0,56520.0,0.1765]
[1725625904843,0.176925,56521.0,56520.0,0.1865]
[1725625905104,0.530775,56521.0,56520.0,0.1865]
[1725625905359,0.530775,56521.0,56505.0,0.1383]
[1725625905360,0.353938,56507.0,56506.0,0.1737]
[1725625905588,0.353938,56507.0,56505.0,0.1383]
[1725625905589,0.177006,56495.0,56494.0,0.01]
[1725625905827,0.42674386,56521.0,56494.0,0.01]
[1725625905828,0.353905,56513.0,56494.0,0.01354002]
[1725625906078,0.176923,56522.0,56518.0,0.002]
[1725625906331,0.62650515,56537.0,56517.0,0.01]
[1725625906332,0.530803,56518.0,56517.0,0.01]
[1725625906609,0.62650515,56537.0,56517.0,0.01]
[1725625906844,0.353671,56550.0,56520.0,0.01]
[1725625906845,0.353824,56526.0,56520.0,0.01]
[1725625907107,0.73855986,56551.0,56497.0,0.35753443]
[1725625907108,0.176912,56525.0,56524.0,0.01]
[1725625907425,0.52650515,56550.0,56533.0,0.01]
[1725625907604,0.52650515,56550.0,56527.0,0.01]
[1725625907605,0.1769,56529.0,56527.0,0.01]
[1725625907827,0.1769,56529.0,56524.0,0.3204]
[1725625907828,0.000816,56551.0,56530.0,0.01]
[1725625908070,0.000816,56551.0,56541.0,0.01]
[1725625908313,0.000816,56551.0,56537.0,0.01]
[1725625908314,0.176872,56538.0,56537.0,0.01]
[1725625908784,0.530662,56533.0,56532.0,0.01]
[1725625909020,0.42755986,56551.0,56532.0,0.01]
[1725625909021,0.000816,56551.0,56532.0,0.01]
[1725625909294,0.176887,56533.0,56532.0,0.01]
[1725625909525,0.000816,56551.0,56524.0,0.3204]
[1725625909779,0.000816,56551.0,56537.0,0.01]
[1725625909780,0.176872,56538.0,56537.0,0.01]
[1725625910060,0.176872,56538.0,56525.0,0.02708578]
[1725625910061,0.000816,56551.0,56550.0,0.01]
[1725625910322,0.000816,56551.0,56547.0,0.01]
[1725625910576,0.530521,56548.0,56547.0,0.01]
[1725625910808,0.530569,56543.0,56542.0,0.01]
[1725625911034,0.000816,56551.0,56524.0,0.3204]
[1725625911296,0.000816,56551.0,56541.0,0.01]
[1725625911552,0.000816,56551.0,56524.0,0.3204]
[1725625911553,0.530625,56537.0,56536.0,0.01]
[1725625911803,0.000816,56551.0,56537.0,0.01]
[1725625912043,0.176875,56537.0,56536.0,0.01]
[1725625912276,0.000816,56551.0,56524.0,0.1777]
[1725625912277,0.884562,56525.0,56524.0,0.1777]
[1725625912551,1.238387,56525.0,56524.0,0.1777]
[1725625912811,0.0481332,56543.0,56510.0,0.1444]
[1725625912812,0.1,56534.0,56510.0,0.1444]
[1725625913061,0.0481332,56543.0,56510.0,0.1444]
[1725625913062,0.884782,56511.0,56510.0,0.1444]
[1725625913303,1.238695,56511.0,56510.0,0.1444]
[1725625913564,0.530907,56507.0,56506.0,0.178]
[1725625913794,1.238783,56507.0,56506.0,0.178]
[1725625914040,0.884845,56507.0,56506.0,0.178]
[1725625914304,0.42674386,56544.0,56506.0,0.178]
[1725625914305,0.353809,56528.0,56515.0,0.01]
[1725625914546,0.070897,56581.0,56506.0,0.168]
[1725625914547,0.176884,56534.0,56533.0,0.01]
[1725625915094,0.05521566,56556.0,56542.0,0.01]
[1725625915322,0.05521566,56556.0,56532.0,0.002]
[1725625915323,0.884265,56544.0,56543.0,0.01]
[1725625915557,0.69230515,56568.0,56521.0,0.01]
[1725625915558,0.176922,56522.0,56521.0,0.01]
[1725625915778,0.884437,56533.0,56532.0,0.01]
[1725625916027,0.530662,56533.0,56532.0,0.01]
[1725625916287,0.000815,56545.0,56519.0,0.165]
[1725625916288,0.530719,56527.0,56526.0,0.01]
[1725625916513,0.530719,56527.0,56519.0,0.165]
[1725625916514,0.884642,56520.0,56519.0,0.165]
[1725625916781,0.53085,56513.0,56512.0,0.01]
[1725625917033,0.530775,56521.0,56520.0,0.01]
[1725625917564,0.530775,56521.0,56512.0,0.01]
[1725625917565,0.3539,56513.0,56512.0,0.01]
[1725625917796,0.530898,56508.0,56507.0,0.1773]
[1725625918066,0.884753,56513.0,56512.0,0.01]
[1725625918370,0.176991,56500.0,56499.0,0.01]
[1725625918598,0.176991,56500.0,56481.0,0.01]
[1725625918599,0.531105,56486.0,56481.0,0.01]
[1725625918831,0.531105,56486.0,56477.0,0.1673]
[1725625918832,2.02005886,56486.0,56477.0,0.1673]
[1725625919053,2.02005886,56486.0,56476.0,0.00164]
[1725625919054,0.885315,56477.0,56476.0,0.00164]
[1725625919281,2.02031086,56477.0,56476.0,0.00164]
[1725625919515,2.12031086,56477.0,56476.0,0.00164]
[1725625919797,2.93879286,56477.0,56476.0,1e-06]
[1725625920054,2.85156286,56477.0,56476.0,1e-06]
[1725625920307,1.22026413,56450.0,56444.0,0.01]
[1725625920621,1.57455913,56450.0,56434.0,0.52650515]
[1725625920875,0.531585,56435.0,56434.0,0.52650515]
[1725625921100,0.886037,56431.0,56430.0,0.00021332]
[1725625921304,0.1,56449.0,56435.0,0.01]
[1725625921305,0.177191,56436.0,56435.0,0.01]
[1725625921525,0.023,56477.0,56450.0,0.01]
[1725625921526,0.42674386,56462.0,56450.0,0.01]
[1725625921769,0.88075215,56458.0,56445.0,0.01]
[1725625921989,0.1,56463.0,56453.0,0.01]
[1725625922221,0.354302,56449.0,56448.0,0.012]
[1725625922477,0.1,56477.0,56448.0,0.01]
[1725625922478,0.354283,56452.0,56448.0,0.01]
[1725625922714,0.1,56464.0,56448.0,0.02948831]
[1725625922715,0.885755,56449.0,56448.0,0.02948831]
[1725625922925,0.42674386,56451.0,56432.0,0.1734]
[1725625922926,0.531603,56433.0,56432.0,0.1734]
[1725625923178,0.531622,56431.0,56430.0,0.00021332]
[1725625923404,0.177213,56429.0,56428.0,0.00099982]
[1725625923678,0.05214263,56451.0,56431.0,0.354411]
[1725625923904,0.05214263,56451.0,56429.0,0.3112]
[1725625923905,0.52650515,56501.0,56480.0,0.01]
[1725625924112,0.52650515,56501.0,56500.0,0.01]
[1725625924346,0.52650515,56501.0,56494.0,0.1694]
[1725625924347,0.353823,56526.0,56514.0,0.01]
[1725625924579,0.353747,56538.0,56517.0,0.01]
[1725625924580,4.176934,56518.0,56517.0,0.01]
[1725625924791,4.0,56518.0,56517.0,0.01]
[1725625925064,4.176934,56518.0,56517.0,0.01]
[1725625925304,4.0,56518.0,56517.0,0.01]
[1725625926027,4.0,56518.0,56516.0,0.01]
[1725625926279,4.0,56518.0,56507.0,0.01]
[1725625926489,0.176966,56508.0,56507.0,0.01]
[1725625926736,4.0,56518.0,56500.0,0.00353918]
[1725625926737,4.0,56518.0,56502.0,0.01]
[1725625927047,4.0,56518.0,56491.0,0.01]
[1725625927048,0.42674386,56516.0,56491.0,0.01]
[1725625927238,0.531001,56497.0,56496.0,0.52650515]
[1725625927458,0.531132,56483.0,56482.0,0.1771]
[1725625927675,0.1434,56515.0,56495.0,0.52650515]
[1725625927920,0.1434,56515.0,56480.0,0.17604049]
[1725625927921,4.0,56518.0,56500.0,0.01]
[1725625928179,0.176989,56501.0,56494.0,0.01]
[1725625928429,0.176989,56501.0,56480.0,0.1725]
[1725625928430,0.353946,56506.0,56495.0,0.53650515]
[1725625928714,0.000816,56508.0,56487.0,0.01]
[1725625928965,0.000816,56508.0,56497.0,0.01]
[1725625929211,0.000816,56508.0,56480.0,0.1725]
[1725625929212,0.000816,56508.0,56482.0,0.52650515]
[1725625929469,0.531123,56484.0,56483.0,0.52650515]
[1725625929709,0.353939,56507.0,56486.0,0.01]
[1725625929926,0.000816,56508.0,56486.0,0.01]
[1725625929927,0.1,56506.0,56486.0,0.01]
[1725625930190,0.1,56506.0,56482.0,0.002]
[1725625930191,0.177044,56483.0,56482.0,0.01]
[1725625930449,0.000816,56508.0,56463.0,0.53150515]
[1725625930450,0.885517,56464.0,56463.0,0.53150515]
[1725625930674,1.239724,56464.0,56463.0,0.52150515]
[1725625930920,1.239724,56464.0,56463.0,0.02362209]
[1725625930921,0.885517,56464.0,56463.0,0.02362209]
[1725625931126,0.53131,56464.0,56463.0,0.02362209]
[1725625931407,0.177129,56456.0,56454.0,0.012]
[1725625931633,0.354138,56475.0,56461.0,0.01]
[1725625931880,0.070998,56491.0,56478.0,0.01]
[1725625932127,0.52650515,56497.0,56480.0,0.01]
[1725625932367,0.52650515,56497.0,56472.0,0.002]
[1725625932368,0.023,56495.0,56472.0,0.01]
[1725625932600,0.177075,56473.0,56472.0,0.01]
[1725625932824,0.531226,56473.0,56472.0,0.01]
[1725625933039,0.023,56495.0,56466.0,0.1759]
[1725625933040,0.885472,56467.0,56466.0,0.1759]
[1725625933279,0.1823,56501.0,56472.0,0.01]
[1725625933509,0.177058,56479.0,56472.0,0.01]
[1725625933752,0.177085,56470.0,56469.0,0.53650515]
[1725625934015,0.1,56487.0,56471.0,0.01]
[1725625934244,0.177094,56467.0,56466.0,0.1859]
[1725625934475,0.4751706,56493.0,56467.0,0.01]
[1725625934720,0.123,56492.0,56467.0,0.01]
[1725625934976,0.123,56492.0,56466.0,0.1759]
[1725625934977,0.177094,56467.0,56466.0,0.1759]
[1725625935192,0.177094,56467.0,56460.0,0.01]
[1725625935193,0.1,56482.0,56460.0,0.01]
[1725625935465,0.123,56492.0,56457.0,0.01]
[1725625935466,0.023,56481.0,56457.0,0.01]
[1725625935720,0.023,56481.0,56433.0,0.52650515]
[1725625935721,0.531349,56460.0,56459.0,0.52650515]
[1725625935927,0.07142674,56481.0,56459.0,0.52650515]
[1725625935928,0.023,56481.0,56459.0,0.52650515]
[1725625936151,0.02774988,56494.0,56467.0,0.01]
[1725625936368,1.076808,56493.0,56477.0,0.01]
[1725625936607,0.1,56500.0,56472.0,0.01]
[1725625936608,0.1,56492.0,56472.0,0.01]
[1725625936838,0.1,56500.0,56476.0,0.52650515]
[1725625937063,0.177072,56474.0,56473.0,0.1829]
[1725625937312,0.1823,56501.0,56462.0,0.01]
[1725625937313,0.177107,56463.0,56462.0,0.01]
[1725625937744,0.35404,56491.0,56462.0,0.01]
[1725625937745,0.354045,56490.0,56482.0,0.01]
[1725625937978,0.52650515,56517.0,56491.0,0.01]
[1725625937979,0.3286,56513.0,56491.0,0.01]
[1725625938218,0.682505,56513.0,56492.0,0.01]
[1725625938476,0.17698,56504.0,56493.0,0.01]
[1725625938690,0.146,56513.0,56490.0,0.52650515]
[1725625938952,0.146,56513.0,56472.0,0.10226324]
[1725625938953,0.353968,56503.0,56496.0,0.012]
[1725625939439,0.177013,56493.0,56492.0,0.01]
[1725625939442,4.0,56518.0,56500.0,0.002]
[1725625939720,4.0,56518.0,56499.0,0.52650515]
[1725625939721,4.0,56518.0,56507.0,0.01]
[1725625939951,4.0,56518.0,56507.0,0.540907]
[1725625940181,4.0,56518.0,56507.0,0.894845]
[1725625940410,4.0,56518.0,56517.0,0.894687]
[1725625940670,4.0,56518.0,56517.0,0.540812]
[1725625940898,4.0,56518.0,56517.0,0.57023042]
[1725625941345,4.0,56518.0,56517.0,0.01]
[1725625942483,4.176934,56518.0,56517.0,0.01]
[1725625942707,0.176937,56517.0,56510.0,0.01]
[1725625942953,4.0,56518.0,56517.0,0.01]
[1725625943195,4.0,56518.0,56517.0,0.930207]
[1725625943425,3.0362,56518.0,56517.0,1.299082]
[1725625943663,3.0212,56518.0,56517.0,0.97462542]
[1725625944188,3.0212,56518.0,56517.0,1.71211435]
[1725625944452,2.50453942,56518.0,56517.0,1.92579921]
[1725625944693,1.43504261,56518.0,56517.0,2.66417435]
[1725625944915,0.000815,56545.0,56517.0,2.66417435]
[1725625944916,0.000815,56545.0,56539.0,1.285603]
[1725625945182,0.000815,56545.0,56539.0,2.30077977]
[1725625945451,0.000815,56545.0,56539.0,2.05016977]
[1725625946017,0.000815,56545.0,56539.0,1.34269377]
[1725625946040,0.000815,56545.0,56539.0,0.59969777]
[1725625946245,0.000815,56545.0,56539.0,1.87422177]
[1725625946474,0.000815,56545.0,56539.0,2.95516408]
[1725625946703,0.000815,56545.0,56539.0,2.83185408]
[1725625946931,0.000815,56545.0,56539.0,2.45511608]
[1725625947149,0.000815,56545.0,56539.0,3.02364308]
[1725625947389,0.000815,56545.0,56539.0,2.45511608]
[1725625947612,0.000815,56545.0,56539.0,2.83694008]
[1725625947876,0.000815,56545.0,56539.0,2.56424086]
[1725625948150,0.000815,56545.0,56539.0,1.80351777]
[1725625948353,0.000815,56545.0,56539.0,1.80451777]
[1725625948579,0.000815,56545.0,56539.0,1.79643177]
[1725625948801,0.000815,56545.0,56539.0,2.18025577]
[1725625949040,0.1768,56561.0,56560.0,0.01]
[1725625949287,0.176822,56554.0,56553.0,0.01]
[1725625949588,0.353694,56546.0,56545.0,0.01]
[1725625949815,0.1411,56562.0,56542.0,0.01]
[1725625949816,0.884282,56543.0,56542.0,0.01]
[1725625950044,0.353602,56561.0,56531.0,0.002]
[1725625950045,1.238058,56540.0,56539.0,0.01]
[1725625950550,0.530596,56540.0,56539.0,0.03921484]
[1725625950776,0.353689,56547.0,56528.0,0.15529034]
[1725625950777,0.1769,56529.0,56528.0,0.15529034]
[1725625951033,0.8845,56529.0,56528.0,0.15329034]
[1725625951317,1.2383,56529.0,56528.0,0.18260695]
[1725625951818,1.88485553,56529.0,56528.0,3.4e-07]
[1725625952051,1.88485553,56529.0,56501.0,0.52650515]
[1725625952052,0.530953,56502.0,56501.0,0.52650515]
[1725625952295,0.884922,56502.0,56501.0,0.52650515]
[1725625952515,1.77596,56502.0,56501.0,0.02929286]
[1725625952769,1.238916,56501.0,56487.0,0.01]
[1725625952995,1.204928,56501.0,56488.0,0.01]
[1725625953228,0.176988,56501.0,56498.0,0.01]
[1725625953474,0.530964,56501.0,56490.0,0.01]
[1725625953691,1.238916,56501.0,56485.0,0.01]
[1725625953915,1.238916,56501.0,56491.0,0.01]
[1725625954140,1.238916,56501.0,56484.0,0.52850515]
[1725625954141,1.238916,56501.0,56494.0,0.01]
[1725625954371,0.1831,56502.0,56501.0,0.01]
[1725625954624,0.176988,56501.0,56497.0,0.01]
[1725625954842,0.1964,56518.0,56507.0,0.01]
[1725625955107,0.1964,56518.0,56506.0,0.01]
[1725625955108,0.530907,56507.0,56506.0,0.01]
[1725625955324,0.530907,56507.0,56485.0,0.52650515]
[1725625955325,0.530935,56504.0,56503.0,0.01]
[1725625955563,0.1964,56518.0,56492.0,0.01]
[1725625955564,0.354026,56493.0,56492.0,0.01]
[1725625955794,0.1964,56518.0,56486.0,0.52650515]
[1725625955795,0.885114,56490.0,56489.0,0.01]
[1725625956033,0.38161393,56517.0,56485.0,0.01]
[1725625956296,0.38161393,56517.0,56476.0,0.002]
[1725625956297,0.177063,56477.0,56476.0,0.00354044]
[1725625956534,0.1964,56497.0,56472.0,0.01]
[1725625956535,0.177075,56473.0,56472.0,0.01]
[1725625956775,0.354011,56496.0,56463.0,0.003632]
[1725625956776,0.177094,56467.0,56466.0,0.01]
[1725625957012,0.177103,56464.0,56463.0,0.011632]
[1725625957551,0.177103,56464.0,56463.0,0.001632]
[1725625957552,0.885517,56464.0,56463.0,0.001632]
[1725625957768,1.23949804,56464.0,56463.0,0.001632]
[1725625959418,1.69370504,56464.0,56463.0,0.001632]
[1725625959656,0.1454,56467.0,56463.0,0.011632]
[1725625959657,0.531286,56467.0,56463.0,0.011632]
[1725625959899,0.1964,56468.0,56467.0,0.01]
[1725625959900,0.531273,56468.0,56467.0,0.01]
[1725625960143,0.1771,56465.0,56464.0,0.01]
[1725625960374,0.194,56479.0,56473.0,0.01]
[1725625960610,0.194,56479.0,56463.0,0.001632]
[1725625960611,0.1847,56495.0,56477.0,0.01]
[1725625960839,0.1847,56495.0,56483.0,0.01]
[1725625961122,0.1847,56495.0,56486.0,0.01]
[1725625961352,0.1901,56506.0,56498.0,0.01]
[1725625961601,0.1901,56506.0,56479.0,0.52650515]
[1725625961602,0.1901,56506.0,56496.0,0.01]
[1725625962156,0.1901,56506.0,56493.0,0.177012]
[1725625962157,0.1901,56506.0,56497.0,0.03932991]
[1725625962392,0.53708,56517.0,56510.0,0.01]
[1725625962613,0.53708,56517.0,56498.0,0.353994]
[1725625962614,0.1832,56517.0,56511.0,0.01]
[1725625962850,0.353882,56516.0,56511.0,0.01]
[1725625963124,0.177021,56491.0,56488.0,0.01]
[1725625963362,0.531123,56484.0,56483.0,0.01]
[1725625963585,0.0417933,56515.0,56463.0,0.355845]
[1725625963586,0.531246,56471.0,56470.0,0.01]
[1725625963835,0.354132,56477.0,56470.0,0.01]
[1725625964062,0.531198,56476.0,56475.0,0.01]
[1725625964305,0.177103,56464.0,56463.0,0.011632]
[1725625964536,0.53131,56464.0,56463.0,0.011632]
[1725625964769,0.1,56486.0,56467.0,0.01]
[1725625965052,0.177072,56474.0,56473.0,0.01]
[1725625965283,0.177072,56474.0,56468.0,0.00354137]
[1725625965284,0.353989,56499.0,56480.0,0.01]
[1725625965519,0.01,56522.0,56463.0,0.001632]
[1725625965520,0.531189,56477.0,56476.0,0.01]
[1725625966211,0.1,56496.0,56467.0,0.354188]
[1725625966212,0.1,56496.0,56479.0,0.01]
[1725625966460,0.1,56496.0,56477.0,0.01]
[1725625966461,0.17706,56478.0,56477.0,0.01]
[1725625966711,0.353907,56512.0,56488.0,0.01]
[1725625966712,0.1547,56500.0,56488.0,0.01]
[1725625966942,0.1547,56500.0,56473.0,0.00517107]
[1725625966943,0.3395,56500.0,56486.0,0.01]
[1725625967181,0.3395,56500.0,56492.0,0.01]
[1725625967182,0.531017,56496.0,56492.0,0.01]
[1725625967425,0.531039,56493.0,56492.0,0.01]
[1725625967662,0.177008,56495.0,56492.0,0.01]
[1725625967891,0.3537498,56496.0,56492.0,0.01]
[1725625968114,0.531039,56493.0,56492.0,0.01]
[1725625968341,0.2,56513.0,56497.0,0.0091465]
[1725625968574,0.353953,56505.0,56502.0,0.0091465]
[1725625968845,0.2,56513.0,56502.0,0.0091465]
[1725625969291,0.176959,56510.0,56509.0,0.0091465]
[1725625969543,0.2,56513.0,56509.0,0.0091465]
[1725625969759,0.2,56513.0,56504.0,0.0091465]
[1725625969984,0.176975,56505.0,56504.0,0.0091465]
[1725625970268,0.529925,56505.0,56504.0,0.0091465]
[1725625970706,0.883875,56505.0,56504.0,0.0091465]
[1725625970949,0.175975,56505.0,56504.0,0.0091465]
[1725625971185,0.529925,56505.0,56504.0,0.03827061]
[1725625971422,0.176975,56505.0,56504.0,0.0091465]
[1725625971657,0.176981,56503.0,56502.0,0.0091465]
[1725625971882,0.530964,56501.0,56500.0,0.0091465]
[1725625972155,0.2,56513.0,56480.0,0.1578]
[1725625972156,0.531039,56493.0,56492.0,0.0091465]
[1725625972381,0.530039,56493.0,56492.0,0.0091465]
[1725625972801,0.884065,56493.0,56492.0,0.0091465]
[1725625973038,0.176013,56493.0,56492.0,0.0091465]
[1725625973497,0.176997,56498.0,56497.0,0.0091465]
[1725625973714,0.1,56512.0,56497.0,0.0091465]
[1725625973940,0.1,56512.0,56496.0,0.002]
[1725625973941,0.05,56517.0,56501.0,0.0091465]
[1725625974190,0.176981,56504.0,56503.0,0.0091465]
[1725625974431,0.05,56517.0,56500.0,0.002]
[1725625974432,0.176972,56506.0,56505.0,0.0091465]
[1725625974653,0.35392,56510.0,56505.0,0.0091465]
[1725625974883,0.05,56517.0,56507.0,0.0091465]
[1725625975135,0.05,56517.0,56516.0,0.5419695]
[1725625975360,0.05,56517.0,56516.0,0.8958515]
[1725625975582,0.05,56517.0,56516.0,1.2787465]
[1725625975818,0.05,56517.0,56516.0,1.2737465]
[1725625976294,0.05,56517.0,56516.0,0.9198645]
[1725625976581,0.176838,56549.0,56544.0,0.1809975]
[1725625976822,0.52650515,56550.0,56545.0,0.03332209]
[1725625976823,0.88017715,56550.0,56545.0,0.03332209]
[1725625977068,0.1981,56553.0,56545.0,0.02917559]
[1725625977069,0.884235,56546.0,56545.0,0.02917559]
[1725625977527,0.19892,56553.0,56544.0,0.0041465]
[1725625977771,0.17685,56545.0,56544.0,0.0041465]
[1725625978028,0.17685,56545.0,56511.0,0.48410364]
[1725625978029,0.19892,56553.0,56545.0,0.0041465]
[1725625978282,0.354475,56553.0,56547.0,0.0041465]
[1725625978510,0.00082,56553.0,56548.0,0.0041465]
[1725625978730,0.177647,56553.0,56548.0,0.1809855]
[1725625978964,0.884172,56550.0,56549.0,0.02913861]
[1725625979198,0.176859,56542.0,56541.0,0.0041465]
[1725625979438,0.530578,56542.0,56541.0,0.0041465]
[1725625979674,0.530578,56542.0,56537.0,0.002]
[1725625979675,0.530541,56546.0,56545.0,0.0041465]
[1725625979909,0.00082,56553.0,56546.0,0.0041465]
[1725625980145,0.00082,56553.0,56548.0,0.0041465]
[1725625980403,0.00082,56553.0,56550.0,0.0041465]
[1725625980661,0.00082,56553.0,56540.0,0.00353667]
[1725625980662,0.00082,56553.0,56552.0,0.0041465]
[1725625980906,0.00082,56553.0,56552.0,1.0486865]
[1725625981139,0.00082,56553.0,56552.0,1.78510937]
[1725625981380,0.00082,56556.0,56555.0,0.8902415]
[1725625981618,0.00082,56556.0,56555.0,0.56568663]
[1725625981856,0.531266,56556.0,56555.0,0.02908313]
[1725625982095,0.531266,56556.0,56555.0,0.03108313]
[1725625982096,0.00082,56556.0,56555.0,0.03108313]
[1725625982327,0.00082,56556.0,56552.0,0.0041465]
[1725625982793,0.00082,56556.0,56553.0,0.02910162]
[1725625983039,0.88411,56554.0,56553.0,0.02910162]
[1725625983283,0.176822,56554.0,56553.0,0.02910162]
[1725625983525,0.00082,56556.0,56555.0,0.0041465]
[1725625983774,0.00082,56556.0,56555.0,0.8882415]
[1725625984002,0.00082,56556.0,56555.0,0.89177669]
[1725625984465,0.00082,56575.0,56561.0,1.62336043]
[1725625984700,0.00082,56575.0,56561.0,0.0061465]
[1725625984943,0.354333,56575.0,56561.0,0.56557417]
[1725625985186,0.353534,56572.0,56561.0,0.1829465]
[1725625985435,0.353533,56572.0,56561.0,0.56357417]
[1725625985679,0.354337,56575.0,56561.0,0.56357417]
[1725625985680,0.531207,56562.0,56561.0,0.02902767]
[1725625985952,1.396995,56562.0,56561.0,0.02902767]
[1725625986199,0.359716,56562.0,56554.0,0.0041465]
[1725625986425,0.377913,56562.0,56561.0,0.02902767]
[1725625986669,0.176834,56550.0,56549.0,0.0041465]
[1725625987358,0.1,56573.0,56555.0,0.0041465]
[1725625987359,0.52650515,56572.0,56555.0,0.0041465]
[1725625987605,0.176815,56556.0,56555.0,0.0041465]
[1725625987831,0.176815,56556.0,56543.0,0.00553662]
[1725625987832,0.023,56572.0,56551.0,0.0041465]
[1725625988126,0.176828,56552.0,56551.0,0.0041465]
[1725625988368,0.023,56572.0,56551.0,0.0041465]
[1725625988611,0.353571,56566.0,56551.0,0.0041465]
[1725625988854,0.1,56573.0,56557.0,0.0041465]
[1725625989097,0.00082,56575.0,56552.0,0.002]
[1725625989098,0.00082,56575.0,56567.0,0.0041465]
[1725625989335,0.00082,56575.0,56574.0,0.5344245]
[1725625989572,0.00082,56575.0,56574.0,1.62507643]
[1725625989818,0.00082,56575.0,56574.0,1.2434625]
[1725625990060,0.00082,56575.0,56574.0,1.62629522]
[1725625990294,0.00082,56597.0,56590.0,0.91588843]
[1725625990537,0.00082,56597.0,56590.0,2.01166543]
[1725625990765,0.00082,56597.0,56590.0,0.21202145]
[1725625991009,0.00082,56597.0,56590.0,0.03116595]
[1725625991247,0.530939,56591.0,56590.0,0.02916595]
[1725625991707,0.530939,56591.0,56584.0,0.0041465]
[1725625991708,0.176741,56580.0,56579.0,0.0041465]
[1725625992063,0.00082,56591.0,56584.0,0.0041465]
[1725625992068,0.00082,56591.0,56590.0,0.8876935]
[1725625992287,0.00082,56591.0,56590.0,0.5362745]
[1725625992507,0.00082,56591.0,56590.0,0.91885945]
[1725625992977,0.00082,56608.0,56607.0,0.353313]
[1725625993944,0.00082,56608.0,56607.0,0.02951642]
[1725625994175,0.00082,56608.0,56597.0,0.353374]
[1725625994176,0.00082,56608.0,56598.0,0.0041465]
[1725625994426,0.00082,56608.0,56593.0,0.353397]
[1725625994427,0.354126,56608.0,56607.0,0.02361314]
[1725625994648,0.00082,56608.0,56598.0,0.0041465]
[1725625994886,0.00082,56608.0,56605.0,0.0041465]
[1725625995107,0.00082,56608.0,56607.0,0.0041465]
[1725625995382,0.00082,56608.0,56607.0,0.8894285]
[1725625995605,0.00082,56608.0,56607.0,0.5361155]
[1725625996068,0.00082,56608.0,56607.0,0.0041465]
[1725625996288,0.00082,56608.0,56607.0,0.0061465]
[1725625996513,0.00082,56608.0,56607.0,0.8894285]
[1725625997186,0.00082,56608.0,56607.0,0.5361155]
[1725625997436,0.00082,56608.0,56607.0,0.8894285]
[1725625998343,0.00082,56608.0,56607.0,1.2427415]
[1725625998572,0.00082,56608.0,56607.0,2.33046843]
[1725625999246,0.00082,56608.0,56607.0,1.5955415]
[1725625999462,0.00082,56608.0,56607.0,1.97715543]